Cogmind - Beta 16 @@@ ROGUE MODE // 2026.01.20 @ 10:21:07 Player: Tubby Watkins Result: Self-destructed Performance ------------- Evolutions (1) 500 Regions Visited (3) 600 Robots Destroyed (33) 165 Value Destroyed (736) 736 Prototype IDs (2) 40 Alien Tech Used (0) 0 Bonus (0) 0 TOTAL SCORE: 2041 Bonus ------- None Cogmind --------- Core Integrity 328/400 Matter 219/300 Energy 100/100 System Corruption 0% Temperature Cool (14) Movement Walking (185) Ox1 Location -9/Materials Parts ------- > --- POWER (1) -------- (None) > --- PROPULSION (3) --- Aluminum Leg VSS Leg > --- UTILITY (3) ------ Large Storage Unit > --- WEAPON (2) ------- Heavy Assault Rifle Assault Cannon > --- INVENTORY (15) --- Light Ion Engine Flight Unit Flight Unit VTOL Module Improved Sensor Array Signal Interpreter Improved Terrain Scanner Improved Utility Shielding Light Armor Plating Light Armor Plating Light Assault Rifle Datajack Mining Laser Axe Peak State ------------ > --- POWER ------------ Light Ion Engine > --- PROPULSION ------- Aluminum Leg VSS Leg > --- UTILITY ---------- Large Storage Unit Light Armor Plating Light Armor Plating > --- WEAPON ----------- Heavy Assault Rifle Assault Cannon > --- INVENTORY -------- Light Ion Engine Flight Unit Flight Unit Improved Sensor Array Signal Interpreter Improved Terrain Scanner Improved Utility Shielding Light Armor Plating Light Armor Plating Light Assault Rifle Datajack Mining Laser Axe [Rating: 15] Favorites ----------- Power Light Ion Engine Engine Light Ion Engine Propulsion Light Treads Treads Light Treads Leg Aluminum Leg Utility Large Storage Unit Device Seismic Detector Storage Large Storage Unit Protection Light Armor Plating Weapon Light Assault Rifle Ballistic Gun Light Assault Rifle Ballistic Cannon Light Cannon Special Weapon Mining Laser Build | -11 -10 -10 -9 ------- Run | Yrd Mat Min Mat Slots Evolved 2 | . . . 2 Power . | . . . . Propulsion 1 | . . . 1 Utility 1 | . . . 1 Weapon . | . . . . Parts Attached 33 | 7 15 9 2 Power 5 | 1 2 2 . Engine 5 | 1 2 2 . Core . | . . . . Reactor . | . . . . Propulsion 10 | 2 6 2 . Treads 2 | . 2 . . Leg 8 | 2 4 2 . Wheel . | . . . . Hover . | . . . . Flight . | . . . . Utility 9 | 2 4 2 1 Device 1 | 1 . . . Storage 3 | 1 2 . . Processor . | . . . . Hackware . | . . . . Protection 5 | . 2 2 1 Artifact . | . . . . Weapon 9 | 2 3 3 1 Energy Gun . | . . . . Energy Cannon . | . . . . Ballistic Gun 6 | 2 2 2 . Ballistic Cannon 2 | . 1 1 . Launcher . | . . . . Special Weapon 1 | . . . 1 Impact Weapon . | . . . . Slashing Weapon . | . . . . Piercing Weapon . | . . . . Special Melee Weapon . | . . . . Unidentified Prototypes . | . . . . Parts Lost 2 | . . 1 1 Power 1 | . . 1 . Propulsion . | . . . . Utility 1 | . . . 1 Weapon . | . . . . Highest Loss Streak 1 | . . 1 1 To Critical Strikes . | . . . . Average Backups 11 | 2 9 14 13 Power 2 | . 3 1 1 Propulsion 3 | 1 3 3 2 Utility 4 | . 2 6 6 Weapon 1 | . . 2 3 Tool/Special . | . . . . Unused Backups 19 | . 4 3 12 Power 1 | . . . 1 Propulsion 9 | . 3 3 3 Utility 5 | . . . 5 Weapon 3 | . 1 . 2 Tool/Special 1 | . . . 1 Average Slot Usage (%) 99 | . 100 99 86 Engine 13 | . 14 13 10 Treads 16 | . 16 18 . Leg 10 | . 11 9 22 Device 7 | . 11 4 . Storage 13 | . 14 14 11 Protection 7 | . 2 9 20 Ballistic Gun 20 | . 24 17 11 Ballistic Cannon 6 | . 3 10 10 Peak Build Rating 15 | 7 8 14 15 Average Rating 9 | 3 7 10 14 On Entrance 7 | . 7 8 14 Avg Prop Armor Cover (%) 10 | . 17 8 . Naked Turns . | . . . . Heaviest Build 37 | 12 30 34 37 Greatest Support 40 | 20 40 40 22 Greatest Overweight (x) 3 | 3 3 2 1 Average Overweight (x) . | 1 . . 1 Largest Inventory Capacity 15 | 8 15 15 15 Average Capacity 12 | 7 10 15 15 Most Carried 15 | 7 13 15 14 Average Carried 11 | 2 9 14 13 Final Capacity 15 | 8 15 15 15 Final Carried 14 | 7 13 14 14 Class Distribution -------------------- 78% | Mutant 21% | Scavenger-Mutant Dominant Class ---------------- Mutant | -10/Materials Mutant | -10/Mines Mutant | -9/Materials Resources | -11 -10 -10 -9 ----------- Run | Yrd Mat Min Mat Matter Collected 931 | 288 360 283 . Remotely . | . . . . Salvage Created 957 | 92 474 307 84 Parts 69 | 10 43 13 3 Haulers Intercepted 1 | . 1 . . Recyclers Shooed 1 | 1 . . . Parts Field Recycled . | . . . . Retrieved Matter . | . . . . Parts Self-Destructed . | . . . . Prevented . | . . . . Parts Restored . | . . . . Kills | -11 -10 -10 -9 ------- Run | Yrd Mat Min Mat Combat Hostiles Destroyed 25 | . 15 8 2 Guns 18 | . 15 3 . Cannons 6 | . . 5 1 Classes Destroyed 9 | 2 5 1 1 Builder 1 | . 1 . . Tunneler 2 | 2 . . . Hauler 1 | . 1 . . Recycler 2 | 1 . 1 . Watcher 2 | . 2 . . Swarmer 10 | . 8 2 . Grunt 12 | . 7 4 1 Duelist 1 | . . . 1 Sentry 2 | . . 2 . Best Kill Streak 7 | 2 7 3 2 Combat Bots Only 7 | . 7 2 2 Max Kills in Single Turn 1 | 1 1 1 1 Gunslinging . | . . . . Exploded . | . . . . Melee . | . . . . Uniques/NPCs Destroyed . | . . . . Combat | -11 -10 -10 -9 -------- Run | Yrd Mat Min Mat Hostile Shots Fired 141 | . 63 59 19 Missed 38 | . 15 19 4 Hits 103 | . 48 40 15 Melee 6 | . . . 6 Projectile 97 | . 48 40 9 Critical Strikes 3 | . . 1 2 Damage Taken 1289 | . 452 528 309 Core 190 | . 62 56 72 Absorbed by Shields . | . . . . Core Remaining (%) 76 | 100 . 52 . Volleys Fired 103 | 18 51 26 8 Largest 2 | 1 2 2 2 Hottest 100 | 20 50 60 100 Shots Fired 187 | 18 102 52 15 Gun 158 | 18 101 32 7 Cannon 28 | . 1 20 7 Launcher . | . . . . Special 1 | . . . 1 Kinetic 186 | 18 102 52 14 Thermal 1 | . . . 1 Explosive . | . . . . Electromagnetic . | . . . . Robot Hit Streak 22 | 4 22 11 10 Robot Miss Streak 2 | 2 2 2 2 Penetration Max . | . . . . Secondary Targets 4 | . 4 . . Max Gunslinging Chain 1 | . 1 . . Shots Hit Robots 131 | 11 72 40 8 Core Hits 56 | 5 33 16 2 Critical Kills . | . . . . Critical Parts Destroyed . | . . . . Critical Strikes 1 | . . 1 . Blast 1 | . . 1 . Melee Attacks . | . . . . Impact . | . . . . Slashing . | . . . . Piercing . | . . . . Sneak Attacks . | . . . . Combat Hostiles . | . . . . Follow-up Attacks . | . . . . Damage Inflicted 1662 | 83 753 623 203 Guns 1171 | 83 753 257 78 Cannons 491 | . . 366 125 Explosions . | . . . . Melee . | . . . . Ramming . | . . . . Kinetic 1662 | 83 753 623 203 Thermal . | . . . . Explosive . | . . . . Electromagnetic . | . . . . Impact . | . . . . Slashing . | . . . . Piercing . | . . . . Highest Corruption 3 | . 3 3 . Average Corruption 2 | . 2 3 . Corruption Purged . | . . . . Corruption Blocked . | . . . . Effects 31 | . 14 17 . Message Errors 4 | . 1 3 . Matter Fused 6 | . 3 3 . Energy Discharges 8 | . 4 4 . Parts Rejected 1 | . . 1 . Parts Fused 2 | . 1 1 . Data Loss (minor) 5 | . 3 2 . Data Loss (major) 4 | . 2 2 . Alerts 1 | . . 1 . Overload Shots . | . . . . Overflow Damage 2 | . . . 2 Projectiles 2 | . . . 2 Explosions . | . . . . Melee . | . . . . Knockbacks 5 | . . 3 2 Impact . | . . . . Kinetic 4 | . . 3 1 Secondary 1 | . . . 1 Self-Inflicted Damage . | . . . . Shots . | . . . . Rammed . | . . . . Targets Rammed . | . . . . Kicked . | . . . . Crushed . | . . . . Highest Temperature 141 | . 16 141 36 Average Temperature 33 | . 7 48 18 Received Heat Transfer 408 | . 138 222 48 Siege Activations . | . . . . Martial Activations . | . . . . Shielding Activations . | . . . . Robots Disrupted . | . . . . Combat Hostiles . | . . . . Robots Corrupted 1 | . . . 1 Combat Hostiles 1 | . . . 1 Parts Fried . | . . . . Impact Corruptions 1 | . . . 1 Robots Melted . | . . . . Combat Hostiles . | . . . . Parts Melted . | . . . . Heat Transferred . | . . . . Parts Sabotaged . | . . . . Parts Stolen . | . . . . Parts Stripped . | . . . . Power Chain Reactions . | . . . . Alert | -11 -10 -10 -9 ------- Run | Yrd Mat Min Mat Maximum Alert Level . | . . . . Low Security (%) 100 | 100 100 100 100 Level 1 . | . . . . Level 2 . | . . . . Level 3 . | . . . . Level 4 . | . . . . Level 5 . | . . . . High Security . | . . . . Max Security . | . . . . Peak Influence 191 | 5 191 50 43 Initial . | . . . . Average 38 | . 73 8 3 Influence Increases 670 | 15 407 195 53 Destroy 0b10 Robot/C 500 | . 300 160 40 Destroy 0b10 Robot/NC 40 | 15 20 5 . Destroy Leader 86 | . 46 30 10 Successful Hack 11 | . 11 . . Destroy Structure 3 | . . . 3 Partial Spotted 15 | . 15 . . Lose Combat Pursuer 15 | . 15 . . Influence Decreases 637 | 15 407 195 20 Time Decay 627 | 15 407 195 10 Lost Part 10 | . . . 10 Squads Dispatched 4 | . 3 1 . Investigation 2 | . 1 1 . Extermination . | . . . . Reinforcement 2 | . 2 . . Assault . | . . . . Garrison . | . . . . Intercept . | . . . . Searches Triggered . | . . . . Construction Impeded . | . . . . Haulers Reinforced . | . . . . Active Scanning Responses . | . . . . Cargo Convoy Interrupts . | . . . . Stealth | -11 -10 -10 -9 --------- Run | Yrd Mat Min Mat Distress Signals . | . . . . Communications Jammed . | . . . . Distress Signals . | . . . . Times Spotted 37 | . 21 10 6 Peak Tracking Total 6 | . 6 3 6 Tactical Retreats 1 | . 1 . . Traps | -11 -10 -10 -9 ------- Run | Yrd Mat Min Mat Traps Triggered 3 | . 3 . . Indirectly . | . . . . Trap Hack Attempts . | . . . . Triggered . | . . . . Disarmed . | . . . . Reprogrammed . | . . . . Reused . | . . . . Traps Extracted . | . . . . Installed . | . . . . Triggered . | . . . . Machines | -11 -10 -10 -9 ---------- Run | Yrd Mat Min Mat Machines Disabled . | . . . . Max in Single Turn . | . . . . Machines Repaired . | . . . . Machines Dismantled . | . . . . Machines Sabotaged . | . . . . Overloaded Fab Kills . | . . . . Hacking | -11 -10 -10 -9 --------- Run | Yrd Mat Min Mat Machines Accessed 4 | . 3 1 . Terminals 3 | . 3 . . Fabricators . | . . . . Repair Stations . | . . . . Recycling Units . | . . . . Scanalyzers . | . . . . Garrison Access . | . . . . Total Hacks 7 | . 6 1 . Successful 3 | . 2 1 . Failed 4 | . 4 . . Catastrophic 1 | . 1 . . Database Lockouts . | . . . . Manual 4 | . 4 . . Terminals 6 | . 6 . . Fabricators . | . . . . Repair Stations . | . . . . Recycling Units . | . . . . Scanalyzers . | . . . . Garrison Access . | . . . . Terminal Hacks 3 | . 2 1 . Robot Analysis 1 | . 1 . . Prototype ID Bank 1 | . 1 . . Open Door 1 | . . 1 . Fabricator Hacks . | . . . . Repair Station Hacks . | . . . . Recycling Unit Hacks . | . . . . Scanalyzer . | . . . . Garrison Access Hacks . | . . . . Unauthorized Hacks . | . . . . Terminals . | . . . . Fabricators . | . . . . Repair Stations . | . . . . Recycling Units . | . . . . Scanalyzers . | . . . . Garrison Access . | . . . . Data Cores Recovered . | . . . . Used . | . . . . Hacking Detections 2 | . 2 . . Full Trace Events . | . . . . Feedback Events . | . . . . Feedback Blocked . | . . . . Robot Schematics Acquired . | . . . . Robots Built . | . . . . Authchips . | . . . . Time . | . . . . Total Robot Build Rating . | . . . . Part Schematics Acquired . | . . . . Parts Built . | . . . . Authchips . | . . . . Time . | . . . . Total Part Build Rating . | . . . . Part Studies Acquired . | . . . . Parts Repaired . | . . . . Time . | . . . . Parts Recycled . | . . . . Recycled Matter . | . . . . Retrieved Matter . | . . . . Retrieved Components . | . . . . Parts Scanalyzed . | . . . . Part Schematics Acquired . | . . . . Parts Damaged . | . . . . Bothacking | -11 -10 -10 -9 ------------ Run | Yrd Mat Min Mat Used RIF Installer . | . . . . Robots Hacked . | . . . . Non-combat . | . . . . Combat . | . . . . Robot Hacks Applied . | . . . . Relay Couplers Released . | . . . . Fabnet Peak Effective % . | . . . . Robots Rewired . | . . . . Allies Hacked . | . . . . Hacks Repelled . | . . . . Allies | -11 -10 -10 -9 -------- Run | Yrd Mat Min Mat Total Allies . | . . . . Largest Group . | . . . . Highest-Rated Group . | . . . . Highest-Rated Ally . | . . . . Total Orders . | . . . . Ally Attacks . | . . . . Total Damage . | . . . . Kills . | . . . . Allies Corrupted . | . . . . Allies Melted . | . . . . Intel | -11 -10 -10 -9 ------- Run | Yrd Mat Min Mat Active Infowar (turns) 1613 | 78 1182 353 . Seismic 1613 | 78 1182 353 . Robot Analysis Total 1 | . 1 . . Derelict Logs Recovered 1 | . . 1 . Drone Launches . | . . . . Drone Recoveries . | . . . . Exploration | -11 -10 -10 -9 ------------- Run | Yrd Mat Min Mat Turns Passed 3130 | 166 1490 1277 197 Spaces Moved 1469 | 91 647 641 90 Core 83 | 60 23 . . Treads 840 | . 432 408 . Legs 546 | 31 192 233 90 Wheels . | . . . . Hover . | . . . . Flight . | . . . . Fastest Speed 50 | 50 120 160 185 Average Speed 164 | 128 149 180 185 Slowest Speed 270 | 200 200 270 185 Overloaded Moves . | . . . . Propulsion Burnouts . | . . . . Robots Hopped . | . . . . Potential Cave-ins . | . . . . Cave-ins Triggered . | . . . . Exploration Rate (%) 46 | 4 74 98 9 Regions Visited 3 Branch Regions 1 Pre-discovered Areas 2 | . . 2 . Known Exits Taken . | . . . . Unknown Exits Taken 3 | 1 1 1 . Scrap Searched 1 | . . 1 . Spaces Dug 1 | . . . 1 Terrain Destroyed 3 | . . . 3 Melee . | . . . . Projectile 3 | . . . 3 AOE . | . . . . Terrain Rammed . | . . . . Walls Destroyed . | . . . . Machines Disabled . | . . . . Actions | -11 -10 -10 -9 --------- Run | Yrd Mat Min Mat Total 2021 | 122 1085 712 102 Wait 362 | . 340 22 . Move 1466 | 90 646 640 90 Hop . | . . . . Pick Up 28 | 7 13 7 1 Fast Attach 7 | 7 . . . Attach 7 | . 2 4 1 Detach 1 | . . 1 . Swap 23 | . 15 6 2 Drop 24 | . 18 6 . Fire 103 | 18 51 26 8 Melee . | . . . . Ram . | . . . . Kick . | . . . . Crush . | . . . . Escape Stasis . | . . . . Rewire . | . . . . Trap . | . . . . Miscellaneous . | . . . . Route ------- -11/Scrapyard -10/Materials (discovered 3 exits: [*Mat x2] / *Min) -10/Mines (discovered 2 exits: [*Mat x2]) -9/Materials History --------- Turn | Location | Event 13 | -11/Scrapyard | Discovered new exit (range 15) 167 | -11/Scrapyard | Entered Materials 272 | -10/Materials | Discovered new exit (range 13) 301 | -10/Materials | Build established: Mutant 556 | -10/Materials | Destroyed 7 combat bots 715 | -10/Materials | Discovered new exit (range 13) 866 | -10/Materials | Build established: Scavenger-Mutant 1047 | -10/Materials | Discovered new exit (range 15) 1517 | -10/Materials | Build established: Mutant 1657 | -10/Materials | Entered Mines 2349 | -10/Mines | Discovered new exit (range 10) 2364 | -10/Mines | Met a Derelict shopkeep closing up shop 2627 | -10/Mines | Discovered new exit (range 9) 2768 | -10/Mines | Learned location of Storage (-9) 2934 | -10/Mines | Entered Materials 2934 | -9/Materials | Evolved 2 slots: Propulsion x1, Utility x1 3131 | -9/Materials | Self-destructed Last Messages --------------- 02858_ System corrupted: Energy discharge (-33). PARAMETERS=PROPULSION+1,UTILITY+1 LOCATION=UNKNOWN GOAL=ESCAPE 02936_ 0O-BBM(g): "Okay, now we're kinda screwed." 02989_ K-01 Serf collects debris. 03015_ Acquired VTOL Module. 03029_ K-01 Serf collects debris. 03033_ K-01 Serf cleans the Material Compactor. 03113_ L-31 Rogue knocked back. 03113_ Destroyed Melee Analysis Suite. 03113_ L-31 Rogue system corrupted by crushing effect. 03114_ L-31 Rogue system terminally corrupted. [Achievement: Power Corrupts] 03117_ U-05 Engineer builds a Wall. 03119_ G-34 Mercenary destroyed. 03120_ Lgt. Ion Engine severed. 03123_ Lgt. Armor Plating severed. 03124_ U-05 Engineer builds a Wall. 03125_ Lgt. Armor Plating destroyed. Map ----- +----------------------------------------------------+ | ?????????????????????????###+####? | | ????????????##########+##### #???? | | ????????? #???? | | ????????? #???? | | ????????? #???? | | ????????????##########+##### #???? | | ???????????????????# !## #???? | | ???????????????????# ## #???? | | ???????????????????# """ ## #???? | | ???????????????????# """ ## #???? | | ???????????????????# """ ## #???? | | ???????????????????# ## #???? | | ???????????????????###+##### #???? | | ??????????????######## #???# #???? | | ??????????????# # #???# #???? | | ??????????????# """ # ##### #???? | | ??????????????# """ + #???? | | ??????????????# """ # ######???? | | ??????????????# # ########## | | ??????????????######## + # | | ?????????????????????# # # | | ?????????????????????# # """ # | | ?????????????????????# # """"" # | | ?????????????????????# +%""""" # | | ?????????????????????# #Y""""" # | | ?????????????????????# #@!""" # | | ?????????????????????# ;l% # | | ?????????????????????# #=%g # | | ?????????????????????# ########## | | ?????????????????????# #%* # | | ?????????????????????# # # | | ???????? ##+####### # # | | ???????? # # | | ???????? # # | | ???????? ##+####### / # | | ?????????????????????# # # | | ?????????????????????# # # | | ?????????????????????#### # | | ????????????????????????########## | | ?????????????????????????????????? | | ?????????????????????????????????? | | ?????????????????????????????????? | | ?????????????????????????????????? | | ?????????????????????????????????? | | ?????????????????????????????????? | | ?????????????????????????????????? | | ?????????????????????????????????? | | ?????????????????????????????????? | | ?????????????????????????????????? | | ?????????????????????????????????? | +----------------------------------------------------+ Best States ------------- Heat Dissipation 28 Energy Generation 10 Energy Capacity 125 Matter Stores 300 Matter Capacity 300 Sight Range 16 Terrain Scan Density 10 Armor Coverage 300 Core Shielding 20 Evasion (%) 55 Recoil Reduction 2 Item Schematics ----------------- None Robot Schematics ------------------ None Fabricated ------------ Nothing Repaired ---------- Nothing Studied --------- None Alien Tech Used ----------------- None Achievements -------------- Power Corrupts Challenges ------------ None Game ------ Seed PartitionScanTriangulator Manual? 0 Play Time 00:31:07 Cumulative 7.5 hours Start 2026.01.20 @ 09:10:08 End 2026.01.20 @ 10:21:07 Sessions 1 Manual Loads 0 Difficulty Rogue Special Mode None Game No. 12 Rogue 12 Adventurer 0 Explorer 0 Win Type - Total 0 Types 0/0/0/0/0/0/0/0/0/0 Lore% 7 Gallery% 11 Achievement% 11 Wizard Run 0 Options --------- Layout 0 ASCII 1 Keyboard 1 Movement Vi Keybinds 0 Fullscreen 1 Font 20/X11 Map View 66x50 Zoom Use 0% Tactical HUD 1 Map Filters NONE Filters NONE Steam 1 RUN: 407dbdb5-4c26-4078-abee-ae944ecb6d9d